bitfinex-derivatives/quotes_SOLF0:USTF0_20251126
["timestamp","ask_amount","ask_price","bid_price","bid_amount"]
[1764130560172,4.93649936,138.09,138.08,0.05300555]
[1764130560471,4.93649936,138.1,138.08,0.05300555]
[1764130560671,4.93649936,138.09,138.08,0.05300555]
[1764130560877,4.93649936,138.1,138.08,0.05300555]
[1764130561071,4.93649936,138.09,138.08,0.05300555]
[1764130561377,4.93649936,138.1,138.08,0.05300555]
[1764130561577,4.93649936,138.09,138.08,0.05300555]
[1764130561772,4.93649936,138.1,138.08,0.05300555]
[1764130561971,4.93649936,138.09,138.08,0.05300555]
[1764130562172,4.93649936,138.1,138.08,0.05300555]
[1764130562372,0.04831707,138.11,138.08,0.05300555]
[1764130562670,4.93957627,138.1,138.08,0.05300555]
[1764130562870,0.04831707,138.11,138.08,0.05300555]
[1764130563076,4.9414434,138.1,138.08,0.05300555]
[1764130563274,4.94241668,138.09,138.08,0.05300555]
[1764130563473,4.94241668,138.1,138.08,0.05300555]
[1764130563675,4.94241668,138.09,138.08,0.05300555]
[1764130563879,4.94241668,138.1,138.08,0.05300555]
[1764130564068,4.94241668,138.09,138.08,0.05300555]
[1764130564269,4.94241668,138.1,138.08,0.05300555]
[1764130564469,4.94241668,138.09,138.08,0.05300555]
[1764130564675,4.94241668,138.1,138.08,0.05300555]
[1764130564976,4.94241668,138.09,138.08,0.05300555]
[1764130569277,10.14891454,138.09,137.99,1.8819295]
[1764130569482,12.03084404,138.08,137.99,26.7619295]
[1764130569678,10.14891454,138.07,137.99,26.7619295]
[1764130569875,4.94241668,138.06,137.99,26.7619295]
[1764130570079,5.20649786,138.07,137.99,26.7619295]
[1764130570382,0.0501781,138.04,138.02,0.05516134]
[1764130571283,0.0501781,138.04,137.97,13.53842143]
[1764130571284,4.95192938,138.03,137.94,116.95545093]
[1764130571475,4.95192938,138.02,137.95,24.86]
[1764130571676,5.23695972,138.03,137.95,24.86]
[1764130571888,4.94943808,138.02,137.95,24.86]
[1764130572180,4.94943808,138.02,137.97,0.04615296]
[1764130572181,103.43409173,138.0,137.97,0.04615296]
[1764130572372,1.8819295,137.98,137.9,14.9619295]
[1764130572575,7.10554026,137.99,137.9,14.9619295]
[1764130572778,4.94252718,137.98,137.9,14.9619295]
[1764130572978,7.10554026,137.99,137.9,14.9619295]
[1764130573175,4.94452783,137.98,137.9,14.9619295]
[1764130573378,0.04764932,137.95,137.93,0.05386486]
[1764130576080,0.04764932,137.95,137.93,6.58166486]
[1764130577087,0.04764932,137.95,137.93,0.05386486]
[1764130587587,0.04764932,137.95,137.93,6.58176486]
[1764130589189,6.5237,138.03,137.96,6.5266]
[1764130589692,6.5237,138.03,137.97,6.5259]
[1764130590196,0.05070352,138.01,137.99,0.0490697]
[1764130593092,0.05070352,138.01,137.99,6.5741697]
[1764130593998,0.05070352,138.01,137.99,0.0490697]
[1764130596591,109.28906941,138.09,137.99,101.5528697]
[1764130596592,6.5213,138.08,137.99,101.5528697]
[1764130596794,6.5213,138.08,137.99,101.5038]
[1764130597303,6.522,138.06,138.0,24.88]
[1764130597498,101.4267,138.1,138.0,24.88]
[1764130597703,0.05505398,138.06,138.04,0.04857658]
[1764130605507,6.57705398,138.06,138.04,0.04857658]
[1764130605693,0.05505398,138.06,138.04,0.04857658]
[1764130615413,6.57715398,138.06,138.04,0.04857658]
[1764130616212,0.05505398,138.06,138.04,0.04857658]
[1764130617213,0.05505398,138.06,138.04,6.57137658]
[1764130622223,10.15567843,138.11,138.04,0.04857658]
[1764130622526,6.5195,138.12,138.06,6.5219]
[1764130623427,0.04890643,138.1,138.08,0.05413178]
[1764130625119,0.04890643,138.1,138.08,6.57493178]
[1764130626218,0.04890643,138.1,138.08,0.05413178]
[1764130629212,0.04890643,138.1,138.08,6.57493178]
[1764130631724,0.04890643,138.1,138.08,0.05413178]
[1764130639431,0.04890643,138.1,138.08,6.57493178]
[1764130643330,0.04890643,138.1,138.08,0.05413178]
[1764130643542,1.92855977,138.1,138.08,0.05413178]
[1764130643722,1.92855977,138.1,138.01,101.4859]
[1764130643723,1.87965334,138.08,138.01,101.4859]
[1764130643927,1.87965334,138.08,138.02,24.84]
[1764130644735,0.05549276,138.06,138.04,0.05443669]
[1764130652340,1.9351461,138.06,138.04,0.05443669]
[1764130653435,8.4571461,138.06,138.04,0.05443669]
[1764130656133,6.5228,138.05,137.99,31.3651]
[1764130656325,6.5228,138.05,137.99,6.5251]
[1764130656532,1.87965334,138.04,137.97,31.386]
[1764130657134,0.04686015,138.02,137.99,0.04930772]
[1764130658444,8.40475334,138.0,137.93,6.5278]
[1764130658650,8.40475334,138.0,137.91,24.86]
[1764130658651,1.87965334,138.0,137.91,24.86]
[1764130658840,1.87965334,138.0,137.9,128.30885334]
[1764130659546,0.05464502,137.96,137.94,0.04767025]
[1764130663337,6.524,138.02,137.94,1.92732359]
[1764130663541,6.524,138.02,137.94,1.87965334]
[1764130664448,0.0464358,137.99,137.97,0.05497661]
[1764130664652,0.05539615,137.99,137.97,0.05497661]
[1764130664955,0.05539615,137.99,137.97,6.58107661]
[1764130667944,0.05539615,137.99,137.97,0.05497661]
[1764130675956,0.05539615,137.99,137.97,6.58107661]
[1764130681960,0.05539615,137.99,137.97,0.05497661]
[1764130682562,0.05539615,137.99,137.97,6.58107661]
[1764130684262,0.05539615,137.99,137.97,0.05497661]
[1764130687463,0.05539615,137.99,137.97,6.58107661]
[1764130690056,5.24056663,138.05,138.0,6.5245]
[1764130690262,8.40195334,138.06,137.98,1.87965334]
[1764130690567,13.64251997,138.06,137.98,1.87965334]
[1764130690763,8.40195334,138.06,137.98,1.87965334]
[1764130691067,0.0530264,138.03,138.01,6.57477329]
[1764130699763,5.26825175,138.08,138.02,103.35815334]
[1764130700073,5.26825175,138.1,138.03,101.4746]
[1764130700276,5.26825175,138.1,138.04,24.84]
[1764130700671,5.26825175,138.1,138.06,6.5218]
[1764130700976,0.04643881,138.08,138.06,6.57367812]
[1764130701173,0.04643881,138.08,138.06,0.05187812]
[1764130701774,0.04643881,138.08,138.06,6.57367812]
[1764130702678,0.04643881,138.08,138.06,31.41367812]
[1764130713873,0.04643881,138.08,138.06,0.05187812]
[1764130717881,0.04643881,138.08,138.06,6.57357812]
[1764130718081,0.04643881,138.08,138.06,0.05187812]
[1764130728189,6.56763881,138.08,138.06,0.05187812]
[1764130739887,11.81475384,138.08,138.06,0.05187812]
[1764130740087,6.56763881,138.08,138.06,0.05187812]
[1764130740490,11.81475384,138.08,138.06,0.05187812]
[1764130740686,6.56763881,138.08,138.06,0.05187812]
[1764130740993,5.26172078,138.07,137.97,129.27502616]
[1764130741196,5.26172078,138.06,137.97,129.27502616]
[1764130741497,5.26172078,138.08,137.97,129.27502616]
[1764130741800,0.04620378,138.04,138.01,0.04928463]
[1764130755815,0.04620378,138.04,138.02,6.5236]
[1764130756020,0.04620378,138.04,138.02,9.46082616]
[1764130756920,0.04620378,138.04,138.03,24.82]
[1764130757224,11.78116919,138.1,138.04,6.5227]
[1764130757225,6.5202,138.1,138.04,6.5227]
[1764130757427,11.78116919,138.1,138.04,6.5227]
[1764130757623,6.5202,138.1,138.04,6.5227]
[1764130757823,11.78116919,138.1,138.04,6.5227]
[1764130758024,0.05083996,138.08,138.06,0.05084269]
[1764130759123,0.05083996,138.08,137.99,104.43802616]
[1764130759124,101.4538,138.06,137.96,13.53842143]
[1764130759328,109.66079535,138.05,137.94,101.5377]
[1764130759629,5.26096919,138.04,137.94,101.5377]
[1764130759830,5.26096919,138.03,137.94,101.5377]
[1764130760018,0.04620843,138.0,137.97,0.0468857]
[1764130762020,0.04620843,138.0,137.97,6.5728857]
[1764130763328,0.04620843,138.0,137.97,0.0468857]
[1764130766331,0.04620843,138.0,137.97,6.5729857]
[1764130768128,0.04620843,138.0,137.98,6.5256]
[1764130768328,0.04620843,138.0,137.98,31.3456]
[1764130773430,0.04620843,138.0,137.98,33.22814307]
[1764130774134,0.04620843,138.0,137.98,31.3456]
[1764130777126,0.04620843,138.0,137.98,24.82]
[1764130777826,0.04620843,138.0,137.98,31.3456]
[1764130789838,5.26096919,138.05,138.02,6.5235]
[1764130790045,5.26096919,138.07,138.02,31.3435]
[1764130790844,0.05112892,138.06,138.03,0.05014018]
[1764130791740,0.05112892,138.06,138.03,1.93268325]
[1764130792347,0.05112892,138.06,138.05,1.88254307]
[1764130793147,6.52,138.11,138.06,6.5216]
[1764130793347,11.78096919,138.11,138.06,31.3416]
[1764130793549,6.52,138.11,138.06,31.3416]
[1764130793750,11.78096919,138.11,138.06,31.3416]
[1764130793940,6.52,138.11,138.06,31.3416]
[1764130794240,0.04990074,138.1,138.07,0.0478282]
[1764130796542,0.04990074,138.1,138.09,1.88254307]
[1764130801852,13.66011226,138.18,138.09,1.88254307]
[1764130802052,13.66011226,138.18,138.1,24.82]
[1764130802454,8.39914307,138.18,138.1,24.82]
[1764130802756,0.05556895,138.15,138.13,0.05102144]
[1764130813750,0.05556895,138.15,138.13,6.56932144]
[1764130813952,0.05556895,138.15,138.13,0.05102144]
[1764130817362,0.05556895,138.15,138.13,6.56952144]
[1764130819965,0.05556895,138.15,138.13,0.05102144]
[1764130822559,0.05556895,138.15,138.13,6.56952144]
[1764130829261,0.05556895,138.15,138.13,0.05102144]
[1764130830276,0.05556895,138.15,138.13,6.56952144]
[1764130833882,0.05556895,138.15,138.13,0.05102144]
[1764130838171,5.16142537,138.14,138.06,24.78]
[1764130838585,5.16142537,138.15,138.06,24.78]
[1764130838778,5.16142537,138.14,138.06,24.78]
[1764130838976,5.16142537,138.15,138.06,24.78]
[1764130839286,0.04946702,138.12,138.09,0.05025005]
[1764130847394,0.04946702,138.12,138.1,6.5199]
[1764130847888,5.20557832,138.18,138.13,6.5185]
[1764130848092,5.20557832,138.17,138.13,6.5185]
[1764130848289,5.20557832,138.19,138.13,6.5185]
[1764130848592,5.20557832,138.18,138.13,6.5185]
[1764130848789,6.63899412,138.2,138.14,0.048998]
[1764130848790,5.25847439,138.17,138.14,0.048998]
[1764130848991,0.05289607,138.17,138.14,0.048998]
[1764130849392,5.25847439,138.17,138.14,0.048998]
[1764130852795,0.05289607,138.17,138.14,0.048998]
[1764130856497,5.26839819,138.17,138.14,0.048998]
[1764130856693,5.26839819,138.17,138.14,6.566998]
[1764130856694,0.05289607,138.17,138.14,6.566998]
[1764130857297,5.26861614,138.17,138.14,0.048998]
[1764130857495,0.05289607,138.17,138.14,0.048998]
[1764130858694,5.27208914,138.17,138.14,0.048998]
[1764130859616,0.05289607,138.17,138.14,0.048998]
[1764130859797,5.27234625,138.17,138.14,0.048998]
[1764130862806,0.05289607,138.17,138.14,0.048998]
[1764130863200,5.27293415,138.17,138.14,0.048998]
[1764130864406,0.05289607,138.17,138.14,0.048998]
[1764130864802,5.27293415,138.17,138.14,0.048998]
[1764130865008,0.05289607,138.17,138.14,0.048998]
[1764130865306,0.05289607,138.17,138.14,6.566998]
[1764130866208,0.05289607,138.17,138.15,6.5176]
[1764130873506,5.21255919,138.21,138.17,6.5166]
[1764130873706,5.21255919,138.22,138.17,6.5166]
[1764130873905,6.5142,138.23,138.17,6.5166]
[1764130873906,5.21255919,138.21,138.17,6.5166]
[1764130874105,5.21255919,138.22,138.17,6.5166]
[1764130874306,5.21255919,138.22,138.14,129.10388276]
[1764130874505,0.05555101,138.19,138.17,0.04777379]
[1764130874900,0.05555101,138.19,138.17,6.56437379]
[1764130881816,0.05555101,138.19,138.18,24.78]
[1764130882217,5.21255919,138.26,138.2,6.5151]
[1764130882419,5.21255919,138.27,138.2,6.5151]
[1764130882918,6.5126,138.26,138.2,6.5151]
[1764130883313,0.0530056,138.24,138.22,0.04790173]
[1764130890819,1.92975247,138.24,138.22,0.04790173]
[1764130893229,0.0530056,138.24,138.22,0.04790173]
[1764130895729,0.0530056,138.24,138.22,1.9246486]
[1764130896028,5.21255919,138.29,138.22,0.04790173]
[1764130896029,1.87674687,138.29,138.22,0.04790173]
[1764130896325,7.08930606,138.29,138.22,0.04790173]
[1764130896521,6.5117,138.28,138.22,0.04790173]
[1764130896925,0.05169396,138.26,138.22,0.04790173]
[1764130897826,0.05169396,138.26,138.22,6.56210173]
[1764130900640,0.05169396,138.26,138.23,6.5138]
[1764130902335,0.05169396,138.26,138.24,6.5132]
[1764130903141,1.87674687,138.32,138.24,6.5132]
[1764130903432,8.38654687,138.32,138.25,6.5128]
[1764130904039,6.5098,138.32,138.25,6.5128]
[1764130904225,6.5098,138.32,138.27,0.05162594]
[1764130905835,6.509,138.34,138.27,0.05162594]
[1764130906034,6.509,138.34,138.29,0.04769725]
[1764130909245,8.38474687,138.36,138.29,6.55869725]
[1764130909948,6.5084,138.35,138.29,6.55869725]
[1764130911151,6.5084,138.35,138.3,6.5104]
[1764130911450,1.87674687,138.36,138.3,6.5104]
[1764130911846,8.38464687,138.36,138.3,6.5104]
[1764130915452,6.5084,138.35,138.29,0.04769725]
[1764130919350,6.5084,138.35,138.29,6.55869725]
[1764130920755,6.5084,138.35,138.29,8.49869725]
[1764130922656,6.5077,138.37,138.29,1.98769725]
[1764130922958,6.5077,138.37,138.32,0.05439161]
[1764130928855,6.5079,138.36,138.32,0.05439161]
[1764130929061,1.87674687,138.37,138.32,0.05439161]
[1764130929962,6.5083,138.35,138.32,0.05439161]
[1764130930162,1.87674687,138.37,138.32,0.05439161]
[1764130931464,6.5078,138.36,138.32,0.05439161]
[1764130932367,1.87674687,138.37,138.32,0.05439161]
[1764130932970,6.5087,138.35,138.32,0.05439161]
[1764130937972,11.64867532,138.37,138.32,0.05439161]
[1764130938173,6.5076,138.37,138.32,0.05439161]
[1764130939472,11.65522635,138.39,138.32,1.93113848]
[1764130939874,6.5067,138.39,138.32,1.93113848]
[1764130941276,6.5067,138.39,138.34,6.5086]
[1764130941574,6.5067,138.39,138.35,0.05248087]
[1764130941965,11.65432635,138.41,138.35,6.56068087]
[1764130942572,5.14852635,138.41,138.35,6.56068087]
[1764130943276,6.5061,138.4,138.35,6.56068087]
[1764130946278,11.65462635,138.4,138.35,6.56068087]
[1764130946579,6.5061,138.4,138.35,6.56068087]
[1764130947378,11.65462635,138.4,138.35,6.56068087]
[1764130947573,6.5061,138.4,138.35,6.56068087]
[1764130948074,11.65462635,138.4,138.35,6.56068087]
[1764130948276,6.5061,138.4,138.35,6.56068087]
[1764130948479,11.65462635,138.4,138.35,6.56068087]
[1764130948676,6.5061,138.4,138.35,6.56068087]
[1764130948982,11.65462635,138.4,138.35,6.56068087]
[1764130949182,6.5061,138.4,138.35,6.56068087]
[1764130949479,11.65462635,138.4,138.35,0.05248087]
[1764130949783,6.5061,138.4,138.35,0.05248087]
[1764130950280,6.5065,138.39,138.35,0.05248087]
[1764130950478,101.2116,138.39,138.35,0.05248087]
[1764130950680,5.14852635,138.38,138.35,0.05248087]
[1764130950877,11.65602635,138.37,138.35,0.05248087]
[1764130951080,6.5075,138.37,138.35,0.05248087]
[1764130951379,11.65602635,138.37,138.35,0.05248087]
[1764130951572,6.5075,138.37,138.35,0.05248087]
[1764130951769,5.14852635,138.39,138.35,0.05248087]
[1764130951967,5.14852635,138.38,138.35,0.05248087]
[1764130952176,5.14852635,138.4,138.35,0.05248087]
[1764130952377,5.14852635,138.39,138.35,0.05248087]
[1764130952579,110.7637969,138.41,138.35,0.05248087]
[1764130952580,11.65552635,138.38,138.35,0.05248087]
[1764130952882,6.507,138.38,138.35,0.05248087]
[1764130953274,11.65552635,138.38,138.35,0.05248087]
[1764130953475,6.507,138.38,138.35,0.05248087]
[1764130953877,11.65552635,138.38,138.35,0.05248087]
[1764130954078,6.507,138.38,138.35,0.05248087]
[1764130954578,11.65552635,138.38,138.35,0.05248087]
[1764130954780,6.507,138.38,138.35,0.05248087]
[1764130957983,6.5074,138.37,138.35,0.05248087]
[1764130958687,11.65522635,138.39,138.35,0.05248087]
[1764130958887,5.14852635,138.38,138.35,0.05248087]
[1764130959080,5.14852635,138.39,138.35,0.05248087]
[1764130959278,5.14852635,138.38,138.35,0.05248087]
[1764130959484,5.14852635,138.39,138.35,0.05248087]
[1764130959688,5.14852635,138.41,138.35,0.05248087]
[1764130959882,5.14852635,138.4,138.35,0.05248087]
[1764130960083,6.5069,138.38,138.35,0.05248087]
[1764130962292,11.65542635,138.38,138.35,0.05248087]
[1764130962484,6.5069,138.38,138.35,0.05248087]
[1764130963379,11.65542635,138.38,138.35,0.05248087]
[1764130963588,6.5069,138.38,138.35,0.05248087]
[1764130964086,11.65542635,138.38,138.35,0.05248087]
[1764130964286,6.5069,138.38,138.35,0.05248087]
[1764130964892,5.14852635,138.39,138.35,0.05248087]
[1764130965092,6.5061,138.4,138.35,0.05248087]
[1764130965592,5.17471431,138.39,138.35,0.05248087]
[1764130967394,6.5061,138.4,138.35,6.56068087]
[1764130967801,6.5054,138.42,138.35,0.05248087]
[1764130968092,6.5054,138.42,138.37,0.0458963]
[1764130968093,5.17471431,138.41,138.37,0.0458963]
[1764130968293,11.67941431,138.43,138.37,0.0458963]
[1764130968596,5.17471431,138.42,138.37,0.0458963]
[1764130968994,5.17471431,138.41,138.37,0.0458963]
[1764130969198,5.17471431,138.42,138.37,0.0458963]
[1764130969392,5.17471431,138.41,138.37,0.0458963]
[1764130969590,5.17471431,138.42,138.37,0.0458963]
[1764130969784,5.17471431,138.41,138.37,0.0458963]
[1764130969990,5.17471431,138.42,138.37,0.0458963]
[1764130970190,5.17471431,138.41,138.37,0.0458963]
[1764130970695,5.17471431,138.4,138.37,0.0458963]
[1764130970895,11.81370843,138.42,138.37,0.0458963]
[1764130971096,5.17471431,138.41,138.37,0.0458963]
[1764130971301,11.68081431,138.4,138.37,0.0458963]
[1764130971498,6.5061,138.4,138.37,0.0458963]
[1764130971798,11.68081431,138.4,138.37,0.0458963]
[1764130971997,6.5061,138.4,138.37,0.0458963]
[1764130972199,11.68081431,138.4,138.37,0.0458963]
[1764130972499,5.17471431,138.39,138.37,0.0458963]
[1764130974094,5.17471431,138.41,138.37,0.0458963]
[1764130976195,11.67971431,138.42,138.37,0.0458963]
[1764130976395,6.505,138.42,138.37,0.0458963]
[1764130976595,11.67971431,138.42,138.37,0.0458963]
[1764130976897,5.17471431,138.41,138.37,0.0458963]
[1764130977300,6.505,138.42,138.37,0.0458963]
[1764130977600,11.67971431,138.42,138.37,0.0458963]
[1764130977902,5.17471431,138.41,138.37,0.0458963]
[1764130980902,5.17471431,138.4,138.37,0.0458963]
[1764130981100,5.17471431,138.4,138.34,1.95]
[1764130981101,8.10021709,138.39,138.34,1.95]
[1764130981407,5.17471431,138.38,138.34,1.95]
[1764130981602,5.17471431,138.37,138.34,1.95]
[1764130981905,5.17471431,138.36,138.34,1.95]
[1764130982206,0.05379158,138.37,138.34,1.99787115]
[1764130982406,5.17471431,138.36,138.34,1.99787115]
[1764130985396,0.05379158,138.37,138.34,1.99787115]
[1764130985707,5.17471431,138.36,138.34,1.99787115]
[1764130986108,11.68271431,138.36,138.34,1.99787115]
[1764130986599,5.17471431,138.36,138.34,1.99787115]
[1764130988007,0.05379158,138.37,138.34,1.99787115]
[1764130988208,5.22850589,138.37,138.34,1.99787115]
[1764130988409,0.05379158,138.37,138.34,1.99787115]
[1764130988708,5.22850589,138.37,138.34,1.99787115]
[1764130989008,5.17471431,138.36,138.34,1.99787115]
[1764130989508,5.22850589,138.37,138.34,1.99787115]
[1764130989708,0.05379158,138.37,138.34,1.99787115]
[1764130992007,5.17471431,138.41,138.34,1.99787115]
[1764130992309,5.17471431,138.43,138.34,1.95]
[1764130992501,5.17471431,138.42,138.34,1.95]
[1764130992702,5.17471431,138.41,138.34,1.95]
[1764130993010,5.17471431,138.4,138.36,0.04676524]
[1764130993603,11.68081431,138.4,138.36,0.04676524]
[1764130993803,6.5061,138.4,138.36,0.04676524]
[1764130994301,5.17471431,138.4,138.36,0.04676524]
[1764130994616,5.17471431,138.42,138.36,0.04676524]
[1764130994910,5.17471431,138.41,138.36,0.04676524]
[1764130995110,5.17471431,138.4,138.36,0.04676524]
[1764130995315,5.17471431,138.42,138.36,0.04676524]
[1764130995514,5.17471431,138.41,138.36,0.04676524]
[1764130995707,5.17471431,138.4,138.36,0.04676524]
[1764130995911,5.17471431,138.42,138.36,0.04676524]
[1764130996099,5.17471431,138.41,138.36,0.04676524]
[1764130996301,5.17471431,138.4,138.36,0.04676524]
[1764130998810,5.17471431,138.4,138.37,1.96]
[1764131000521,5.14990373,138.4,138.37,1.96]
[1764131002123,11.65610373,138.4,138.37,1.96]
[1764131002323,6.5062,138.4,138.37,1.96]
[1764131002527,11.65610373,138.4,138.37,1.96]
[1764131002825,6.5065,138.39,138.37,1.96]
[1764131004217,5.14990373,138.4,138.37,1.96]
[1764131004920,11.65600373,138.4,138.37,1.96]
[1764131005228,6.5061,138.4,138.37,1.96]
[1764131005426,5.14990373,138.39,138.37,1.96]
[1764131005626,6.5061,138.4,138.37,1.96]
[1764131005828,11.65600373,138.4,138.37,1.96]
[1764131006028,6.5061,138.4,138.37,1.96]
[1764131006230,11.65600373,138.4,138.37,1.96]
[1764131006431,6.5061,138.4,138.37,1.96]
[1764131006621,11.65600373,138.4,138.37,1.96]
[1764131006823,6.5061,138.4,138.37,1.96]
[1764131007023,11.65600373,138.4,138.37,1.96]
[1764131007229,6.5061,138.4,138.37,1.96]
[1764131007427,11.65600373,138.4,138.37,1.96]
[1764131007618,6.5061,138.4,138.37,1.96]
[1764131007822,11.65600373,138.4,138.37,1.96]
[1764131008030,6.5061,138.4,138.37,1.96]
[1764131008226,11.65600373,138.4,138.37,1.96]
[1764131008426,6.5061,138.4,138.37,1.96]
[1764131008626,11.65600373,138.4,138.37,1.96]
[1764131008828,6.5061,138.4,138.37,1.96]
[1764131009126,11.65600373,138.4,138.37,1.96]
[1764131009327,6.5061,138.4,138.37,1.96]
[1764131009625,11.65600373,138.4,138.37,1.96]
[1764131009822,6.5061,138.4,138.37,1.96]
[1764131010026,11.65600373,138.4,138.37,1.96]
[1764131010328,6.5061,138.4,138.37,1.96]
[1764131010526,11.65600373,138.4,138.37,1.96]
[1764131010726,6.5061,138.4,138.37,1.96]
[1764131011033,11.65600373,138.4,138.37,1.96]
[1764131011233,6.5061,138.4,138.37,1.96]
[1764131011432,11.65600373,138.4,138.37,1.96]
[1764131011634,6.5061,138.4,138.37,1.96]
[1764131011836,11.65600373,138.4,138.37,1.96]
[1764131012034,6.5061,138.4,138.37,1.96]
[1764131012235,11.65640373,138.39,138.37,1.96]
[1764131012432,6.5065,138.39,138.37,1.96]
[1764131012631,11.65640373,138.39,138.37,1.96]
[1764131012833,5.14990373,138.38,138.37,1.96]
[1764131018941,7.02205258,138.38,138.37,1.96]
[1764131019934,5.14990373,138.38,138.37,1.96]
[1764131021335,7.02205258,138.38,138.37,1.96]
[1764131022040,6.5073,138.37,138.36,0.04676524]
[1764131022239,11.65720373,138.37,138.36,0.04676524]
[1764131024440,8.37944885,138.37,138.36,0.04676524]
[1764131024742,6.5082,138.36,138.29,1.87214885]
[1764131024938,11.65810373,138.36,138.26,127.82162143]
[1764131025244,11.65810373,138.36,138.29,1.87214885]
[1764131025629,0.04783398,138.34,138.31,0.04833573]
[1764131027348,6.55673398,138.34,138.31,0.04833573]
[1764131030452,0.04783398,138.34,138.32,1.87214885]
[1764131031251,0.04783398,138.34,138.32,8.38164885]
[1764131031752,6.5065,138.39,138.32,8.38164885]
[1764131032645,6.5065,138.39,138.34,0.04734849]
[1764131033044,11.63960335,138.39,138.34,0.04734849]
[1764131033258,6.5065,138.39,138.34,0.04734849]
[1764131033461,11.63960335,138.39,138.34,0.04734849]
[1764131033649,6.5065,138.39,138.34,0.04734849]
[1764131033955,11.63960335,138.39,138.34,0.04734849]
[1764131034161,6.5065,138.39,138.34,0.04734849]
[1764131034352,11.63960335,138.39,138.34,0.04734849]
[1764131034553,6.5065,138.39,138.34,0.04734849]
[1764131034755,11.63960335,138.39,138.34,0.04734849]
[1764131034954,6.5065,138.39,138.34,0.04734849]
[1764131035157,11.63960335,138.39,138.34,0.04734849]
[1764131035358,6.5065,138.39,138.34,0.04734849]
[1764131035661,5.13310335,138.39,138.34,0.04734849]
[1764131035861,1.87214885,138.4,138.34,0.04734849]
[1764131036155,5.13310335,138.39,138.34,0.04734849]
[1764131036359,8.37824885,138.4,138.34,0.04734849]
[1764131036560,5.13310335,138.39,138.34,0.04734849]
[1764131039864,11.63960335,138.39,138.34,0.04734849]
[1764131040561,7.01627337,138.38,138.34,0.04734849]
[1764131040760,5.14412452,138.37,138.34,0.04734849]
[1764131041064,1.87214885,138.38,138.34,0.04734849]
[1764131041256,6.5079,138.36,138.34,0.04734849]
[1764131041964,11.65195456,138.36,138.34,0.04734849]
[1764131042164,8.38004885,138.36,138.34,0.04734849]
[1764131042361,13.52410341,138.36,138.34,0.04734849]
[1764131042562,8.38004885,138.36,138.34,0.04734849]
[1764131044664,1.87214885,138.41,138.34,0.04734849]
[1764131044970,5.14367991,138.4,138.34,0.04734849]
[1764131045267,5.14367991,138.39,138.34,0.04734849]
[1764131045567,5.14367991,138.4,138.34,0.04734849]
[1764131045770,11.65017991,138.39,138.34,0.04734849]
[1764131045963,6.5065,138.39,138.34,0.04734849]
[1764131046160,11.65017991,138.39,138.34,0.04734849]
[1764131046358,6.5065,138.39,138.34,0.04734849]
[1764131046560,11.65017991,138.39,138.34,0.04734849]
[1764131046765,6.5065,138.39,138.34,0.04734849]
[1764131046965,11.65017991,138.39,138.34,0.04734849]
[1764131047175,5.14367991,138.4,138.34,0.04734849]
[1764131047472,6.507,138.38,138.34,0.04734849]
[1764131048171,11.64987991,138.4,138.34,0.04734849]
[1764131048367,5.14367991,138.4,138.34,0.04734849]
[1764131048575,1.87214885,138.43,138.34,1.91949734]
[1764131048773,5.13804046,138.42,138.37,0.04677519]
[1764131048965,5.13804046,138.41,138.37,0.04677519]
[1764131049282,6.5058,138.41,138.37,0.04677519]
[1764131049464,11.64338206,138.41,138.37,0.04677519]
[1764131049666,6.5058,138.41,138.37,0.04677519]
[1764131049867,11.64338206,138.41,138.37,0.04677519]
[1764131050172,5.13758206,138.42,138.37,0.04677519]
[1764131050374,11.64155565,138.43,138.37,0.04677519]
[1764131050572,6.5048,138.43,138.37,0.04677519]
[1764131050772,11.64155565,138.43,138.37,0.04677519]
[1764131050976,6.5048,138.43,138.37,0.04677519]
[1764131051173,11.64155565,138.43,138.37,0.04677519]
[1764131051375,6.5048,138.43,138.37,0.04677519]
[1764131051674,11.64155565,138.43,138.37,0.04677519]
[1764131051875,6.5048,138.43,138.37,0.04677519]
[1764131052176,5.13675565,138.43,138.37,0.04677519]
[1764131052372,5.13675565,138.45,138.37,0.04677519]
[1764131052564,5.13675565,138.44,138.4,0.05149347]
[1764131052763,5.13675565,138.43,138.4,0.05149347]
[1764131052963,5.13675565,138.45,138.4,0.05149347]
[1764131053164,5.13675565,138.44,138.4,0.05149347]
[1764131053378,5.13675565,138.43,138.4,0.05149347]
[1764131054179,6.5042,138.44,138.4,0.05149347]
[1764131054380,11.64095565,138.44,138.4,0.05149347]
[1764131054678,5.13675565,138.43,138.4,0.05149347]
[1764131054981,5.13675565,138.42,138.4,0.05149347]